{"text_format":"3","workbook":"xlsx","n_sheets":2,"sheets":["Kezdés","Ünnepi költségvetés-tervező"],"not_rendered":{"defined_names":1},"read":"whole","date_system":"1900"}

{"sheet":"Kezdés","index":0,"n_rows":7,"n_cols":2,"rows_kept":7}
[null,"A SABLON ISMERTETÉSE"]
[null,"Ezzel az ünnepi költségvetés-tervező nyilvántarthatja a kiadásait."]
[null,"Ebben a táblázatban adhatja meg a különféle elemek költségvetési és tényleges költségét."]
[null,"Az ünnepi költségvetéstés, a tényleges teljes elköltött összeget és a különbözet automatikusan kiszámítja a sablon."]
[null,"Megjegyzés: "]
[null,"Az ÜNNEPI KÖLTSÉGVETÉS-TERVEZŐ munkalap A oszlopában további útmutatást olvashat. Ez a szöveg szándékosan van elrejtve. Ha törölni szeretné a szöveget, jelölje ki az A oszlopot, majd nyomja le a DELETE billentyűt. Ha láthatóvá szeretné tenni a szöveget, jelölje ki az A oszlopot, majd módosítsa a betűszínt."]
[null,"Ha többet meg szeretne tudni a táblázatokról, nyomja le a SHIFT+F10 billentyűkombinációt egy táblázaton belül, válassza a TÁBLÁZAT parancsot, majd a HELYETTESÍTŐ SZÖVEG elemet."]

{"sheet":"Ünnepi költségvetés-tervező","index":1,"n_rows":32,"n_cols":12,"rows_kept":32,"merged":[[1,1,5,4],[2,8,2,9],[3,8,3,9],[4,8,4,9],[6,1,6,4],[6,8,6,11],[15,1,15,4],[15,8,15,11],[25,1,25,4],[25,8,25,11]]}
["Ezen a munkalapon adhatja meg az egyes kategóriák költségvetés és tényleges költségét a megfelelő táblázatokban. Ennek az oszlopnak a celláiban a munkalap használatát megkönnyítő útmutatás olvasható. Első lépésként nyomja le a Le nyílbillentyűt. "]
["A jobbra lévő cellában szerepel a munkalap címe.","Ünnepi költségvetés \nTervező"]
["A K3 cellában a sablon automatikusan kiszámítja az ünnepi költségvetés.",{"$nulls":7},"ÜNNEPI KÖLTSÉGVETÉS",null,{"$f":"SUM(Ajándék[Költségvetés],Csomagolás[Költségvetés],(Utazás[Költségvetés],(Étkezések[Költségvetés],(Szórakozás[Költségvetés],Egyéb[Költségvetés]))))","v":{"v":750,"d":"750.00 Ft"}}]
["A K4 cellában a sablon automatikusan kiszámítja a ténylegesen elköltötve összeget.",{"$nulls":7},"Ténylegesen elköltve",null,{"$f":"SUM((Ajándék[Tényleges],(Csomagolás[Tényleges],(Utazás[Tényleges],(Étkezések[Tényleges],(Szórakozás[Tényleges],(Egyéb[Tényleges])))))))","v":{"v":820,"d":"820.00 Ft"}}]
["A K5 cellában a sablon automatikusan kiszámítja a különbözet. A következő utasítás az A7 cellában található.",{"$nulls":7},"KÜLÖNBÖZET (költségvetés fölött/alatt)",null,{"$f":"SUM(K3-K4)","v":{"v":-70,"d":"-70.00 Ft"}}]
[]
["A jobbra lévő cellában szerepel az Ajándék címke és az I7 cellában az Ünnepi étkezések.","Ajándék",{"$nulls":6},"Ünnepi étkezések"]
["Adja meg az ajándék költött összegeket a jobbra lévő cellával kezdődő táblázatban és az étkezések kiadásokat az I8 cellával kezdődő táblázatban. A következő utasítás az A16 cellában található.","Tétel","Költségvetés","Tényleges","Különbözet",{"$nulls":3},"Tétel","Költségvetés","Tényleges","Különbözet"]
[null,"Család",{"v":500,"d":"500.00 Ft"},{"v":495,"d":"495.00 Ft"},{"$f":"Ajándék[[#This Row],[Költségvetés]]-Ajándék[[#This Row],[Tényleges]]","v":{"v":5,"d":"5.00 Ft"}},{"$nulls":3},"Bevásárlás",null,null,{"$f":"Étkezések[[#This Row],[Költségvetés]]-Étkezések[[#This Row],[Tényleges]]","v":{"v":0,"d":"0.00 Ft"}}]
[null,"Barátok",{"v":250,"d":"250.00 Ft"},{"v":325,"d":"325.00 Ft"},{"$f":"Ajándék[[#This Row],[Költségvetés]]-Ajándék[[#This Row],[Tényleges]]","v":{"v":-75,"d":"-75.00 Ft"}},{"$nulls":3},"Italok",null,null,{"$f":"Étkezések[[#This Row],[Költségvetés]]-Étkezések[[#This Row],[Tényleges]]","v":{"v":0,"d":"0.00 Ft"}}]
[null,"Munkatársak",null,null,{"$f":"Ajándék[[#This Row],[Költségvetés]]-Ajándék[[#This Row],[Tényleges]]","v":{"v":0,"d":"0.00 Ft"}},{"$nulls":3},"Dekoráció",null,null,{"$f":"Étkezések[[#This Row],[Költségvetés]]-Étkezések[[#This Row],[Tényleges]]","v":{"v":0,"d":"0.00 Ft"}}]
[null,"Tanárok, dadák, gyermekfelügyelők stb.",null,null,{"$f":"Ajándék[[#This Row],[Költségvetés]]-Ajándék[[#This Row],[Tényleges]]","v":{"v":0,"d":"0.00 Ft"}},{"$nulls":3},"Egyéb (új sor felvételéhez nyomja le a Tab billentyűt e sor utolsó oszlopában)",null,null,{"$f":"Étkezések[[#This Row],[Költségvetés]]-Étkezések[[#This Row],[Tényleges]]","v":{"v":0,"d":"0.00 Ft"}}]
[null,"Jótékonysági adományok",null,null,{"$f":"Ajándék[[#This Row],[Költségvetés]]-Ajándék[[#This Row],[Tényleges]]","v":{"v":0,"d":"0.00 Ft"}},{"$nulls":3},"Összesen",{"$f":"SUBTOTAL(109,Étkezések[Költségvetés])","v":{"v":0,"d":"0.00 Ft"}},{"$f":"SUBTOTAL(109,Étkezések[Tényleges])","v":{"v":0,"d":"0.00 Ft"}},{"$f":"SUBTOTAL(109,Étkezések[Különbözet])","v":{"v":0,"d":"0.00 Ft"}}]
[null,"Egyéb (új sor felvételéhez nyomja le a Tab billentyűt e sor utolsó oszlopában)",null,null,{"$f":"Ajándék[[#This Row],[Költségvetés]]-Ajándék[[#This Row],[Tényleges]]","v":{"v":0,"d":"0.00 Ft"}}]
[null,"Összesen",{"$f":"SUBTOTAL(109,Ajándék[Költségvetés])","v":{"v":750,"d":"750.00 Ft"}},{"$f":"SUBTOTAL(109,Ajándék[Tényleges])","v":{"v":820,"d":"820.00 Ft"}},{"$f":"SUBTOTAL(109,Ajándék[Különbözet])","v":{"v":-70,"d":"-70.00 Ft"}}]
["A jobbra lévő cellában szerepel a Csomagolás címke és az I16 cellában a Szórakozás címke.","Csomagolás",{"$nulls":6},"Szórakozás"]
["Adja meg a csomagolás költött összegeket a jobbra lévő cellával kezdődő táblázatban és a szórakozás kiadásokat az I17 cellával kezdődő táblázatban. A következő utasítás az A26 cellában található.","Tétel","Költségvetés","Tényleges","Különbözet",{"$nulls":3},"Tétel","Költségvetés","Tényleges","Különbözet"]
[null,"Ajándék csomagolása",null,null,{"$f":"Csomagolás[[#This Row],[Költségvetés]]-Csomagolás[[#This Row],[Tényleges]]","v":{"v":0,"d":"0.00 Ft"}},{"$nulls":3},"Segítők az ünnepségen (csapos, élelmiszerszállító, takarítók stb.)",null,null,{"$f":"Szórakozás[[#This Row],[Költségvetés]]-Szórakozás[[#This Row],[Tényleges]]","v":{"v":0,"d":"0.00 Ft"}}]
[null,"Címkék",null,null,{"$f":"Csomagolás[[#This Row],[Költségvetés]]-Csomagolás[[#This Row],[Tényleges]]","v":{"v":0,"d":"0.00 Ft"}},{"$nulls":3},"Dekoráció",null,null,{"$f":"Szórakozás[[#This Row],[Költségvetés]]-Szórakozás[[#This Row],[Tényleges]]","v":{"v":0,"d":"0.00 Ft"}}]
[null,"Kellékek (szalag, ragasztószalag stb.)",null,null,{"$f":"Csomagolás[[#This Row],[Költségvetés]]-Csomagolás[[#This Row],[Tényleges]]","v":{"v":0,"d":"0.00 Ft"}},{"$nulls":3},"Étel és ital",null,null,{"$f":"Szórakozás[[#This Row],[Költségvetés]]-Szórakozás[[#This Row],[Tényleges]]","v":{"v":0,"d":"0.00 Ft"}}]
[null,"Dobozok",null,null,{"$f":"Csomagolás[[#This Row],[Költségvetés]]-Csomagolás[[#This Row],[Tényleges]]","v":{"v":0,"d":"0.00 Ft"}},{"$nulls":3},"Ruhanemű",null,null,{"$f":"Szórakozás[[#This Row],[Költségvetés]]-Szórakozás[[#This Row],[Tényleges]]","v":{"v":0,"d":"0.00 Ft"}}]
[null,"Postaköltség",null,null,{"$f":"Csomagolás[[#This Row],[Költségvetés]]-Csomagolás[[#This Row],[Tényleges]]","v":{"v":0,"d":"0.00 Ft"}},{"$nulls":3},"Jegyek",null,null,{"$f":"Szórakozás[[#This Row],[Költségvetés]]-Szórakozás[[#This Row],[Tényleges]]","v":{"v":0,"d":"0.00 Ft"}}]
[null,"Egyéb (új sor felvételéhez nyomja le a Tab billentyűt e sor utolsó oszlopában)",null,null,{"$f":"Csomagolás[[#This Row],[Költségvetés]]-Csomagolás[[#This Row],[Tényleges]]","v":{"v":0,"d":"0.00 Ft"}},{"$nulls":3},"Vacsora étteremben",null,null,{"$f":"Szórakozás[[#This Row],[Költségvetés]]-Szórakozás[[#This Row],[Tényleges]]","v":{"v":0,"d":"0.00 Ft"}}]
[null,"Összesen",{"$f":"SUBTOTAL(109,Csomagolás[Költségvetés])","v":{"v":0,"d":"0.00 Ft"}},{"$f":"SUBTOTAL(109,Csomagolás[Tényleges])","v":{"v":0,"d":"0.00 Ft"}},{"$f":"SUBTOTAL(109,Csomagolás[Különbözet])","v":{"v":0,"d":"0.00 Ft"}},{"$nulls":3},"Egyéb (új sor felvételéhez nyomja le a Tab billentyűt e sor utolsó oszlopában)",null,null,{"$f":"Szórakozás[[#This Row],[Költségvetés]]-Szórakozás[[#This Row],[Tényleges]]","v":{"v":0,"d":"0.00 Ft"}}]
[{"$nulls":8},"Összesen",{"$f":"SUBTOTAL(109,Szórakozás[Költségvetés])","v":{"v":0,"d":"0.00 Ft"}},{"$f":"SUBTOTAL(109,Szórakozás[Tényleges])","v":{"v":0,"d":"0.00 Ft"}},{"$f":"SUBTOTAL(109,Szórakozás[Különbözet])","v":{"v":0,"d":"0.00 Ft"}}]
["A jobbra lévő cellában szerepel az Utazás címke és az I26 cellában az Egyéb címke.","Utazás",{"$nulls":6},"Egyéb"]
["Adja meg az utazás költött összegeket a jobbra lévő cellával kezdődő táblázatban és az egyéb kiadásokat az I27 cellával kezdődő táblázatban.","Tétel","Költségvetés","Tényleges","Különbözet",{"$nulls":3},"Tétel","Költségvetés","Tényleges","Különbözet"]
[null,"Repülőjegy",null,null,{"$f":"Utazás[[#This Row],[Költségvetés]]-Utazás[[#This Row],[Tényleges]]","v":{"v":0,"d":"0.00 Ft"}},{"$nulls":3},"Ünnepi fényképek",null,null,{"$f":"Egyéb[[#This Row],[Költségvetés]]-Egyéb[[#This Row],[Tényleges]]","v":{"v":0,"d":"0.00 Ft"}}]
[null,"Szállás",null,null,{"$f":"Utazás[[#This Row],[Költségvetés]]-Utazás[[#This Row],[Tényleges]]","v":{"v":0,"d":"0.00 Ft"}},{"$nulls":3},"Üzemanyag ",null,null,{"$f":"Egyéb[[#This Row],[Költségvetés]]-Egyéb[[#This Row],[Tényleges]]","v":{"v":0,"d":"0.00 Ft"}}]
[null,"Közlekedés",null,null,{"$f":"Utazás[[#This Row],[Költségvetés]]-Utazás[[#This Row],[Tényleges]]","v":{"v":0,"d":"0.00 Ft"}},{"$nulls":3},"Egyéb (új sor felvételéhez nyomja le a Tab billentyűt e sor utolsó oszlopában)",null,null,{"$f":"Egyéb[[#This Row],[Költségvetés]]-Egyéb[[#This Row],[Tényleges]]","v":{"v":0,"d":"0.00 Ft"}}]
[null,"Egyéb (új sor felvételéhez nyomja le a Tab billentyűt e sor utolsó oszlopában)",null,null,{"$f":"Utazás[[#This Row],[Költségvetés]]-Utazás[[#This Row],[Tényleges]]","v":{"v":0,"d":"0.00 Ft"}},{"$nulls":3},"Összesen",{"$f":"SUBTOTAL(109,Egyéb[Költségvetés])","v":{"v":0,"d":"0.00 Ft"}},{"$f":"SUBTOTAL(109,Egyéb[Tényleges])","v":{"v":0,"d":"0.00 Ft"}},{"$f":"SUBTOTAL(109,Egyéb[Különbözet])","v":{"v":0,"d":"0.00 Ft"}}]
[null,"Összesen",{"$f":"SUBTOTAL(109,Utazás[Költségvetés])","v":{"v":0,"d":"0.00 Ft"}},{"$f":"SUBTOTAL(109,Utazás[Tényleges])","v":{"v":0,"d":"0.00 Ft"}},{"$f":"SUBTOTAL(109,Utazás[Különbözet])","v":{"v":0,"d":"0.00 Ft"}}]